[Event "14th BPB Limburg Open 2022"]
[Site "Maastricht"]
[Date "2022.06.06"]
[Round "6.10"]
[White "Thompson, Ian D"]
[Black "Pauly, Carlo"]
[Result "0-1"]
[ECO "A26"]
[WhiteElo "2074"]
[BlackElo "2297"]
[Annotator "TA"]
[PlyCount "92"]
[EventDate "2022.06.03"]
[EventType "swiss"]
[EventCountry "NED"]
[SourceTitle "playchess.com"]
[Source "ChessBase"]
[SourceQuality "1"]
[TimeControl "7200+15"]

{[%evp 28,92,0,-31,-12,-6,-10,-10,-25,0,-15,-18,-16,-14,-18,-16,0,-39,-39,-32,-41,-39,-39,-40,-33,-36,-32,-51,-45,-50,-38,-55,-47,-104,-79,-80,-84,-94,-87,-85,-45,-53,-57,-54,-56,-79,-71,-169,-61,-116,-79,-322,-79,-79,-69,-77,-48,-164,-210,-173,-147,-312,-253,-390,-320,-954,-902]} 1. c4 {[%emt 0:00:03]} Nf6 {[%emt 0:00:07]} 2. Nc3 {[%emt 0:00:11]} g6 {[%emt 0:00:08]} 3. g3 {[%emt 0:00:09]} Bg7 {[%emt 0:00:07]} 4. Bg2 {[%emt 0:00:06]} O-O {[%emt 0:00:07]} 5. Nf3 {[%emt 0:00:14]} d6 {[%emt 0:00:11]} 6. O-O {[%emt 0:00:25]} Nc6 {[%emt 0:00:10]} 7. Rb1 {[%emt 0:00:45]} a5 {[%emt 0:00:28]} 8. a3 {[%emt 0:00:26]} e5 {[%emt 0:00:46]} 9. d3 {[%emt 0:00:15]} Re8 {[%emt 0:02:16]} 10. Bg5 {[%emt 0:29:56]} h6 {[%emt 0:02:27]} 11. Bxf6 {[%emt 0:00:06]} Bxf6 {[%emt 0:00:04]} 12. b4 {[%emt 0:00:13]} axb4 {[%emt 0:00:06]} 13. axb4 {[%emt 0:00:06]} Bg7 {[%emt 0:00:12]} 14. b5 {[%emt 0:01:13]} Ne7 {[%emt 0:00:14]} 15. Nd2 {[%emt 0:01:24]} c6 {[%emt 0:01:40] A26: English Opening vs King's Indian with ...Nc6 and d3.} 16. bxc6 {[%emt 0:03:41]} bxc6 {[%emt 0:00:09][%cal Oe5e4]} 17. Qc2 {[%emt 0:07:20]} Be6 {[%emt 0:10:07] The position is equal.} 18. Rb7 {[%emt 0:10:33]} Rb8 {[%emt 0:09:05]} 19. Rfb1 {[%emt 0:04:03]} Rxb7 {[%emt 0:00:22]} 20. Rxb7 {[%emt 0:00:02]} Qa5 {[%emt 0:02:32]} 21. Nde4 {[%emt 0:09:57]} Nf5 {[%emt 0:04:17]} 22. e3 {[%emt 0:05:03] Prevents Nd4.} d5 {[%emt 0:03:29]} 23. cxd5 {[%emt 0:02:09]} cxd5 {[%emt 0:00:06] Hoping for ...Rc8.} 24. Rb5 {[%emt 0:01:21]} Qa1+ {[%emt 0:01:21]} 25. Rb1 {[%emt 0:00:07]} Qa3 {[%emt 0:01:30]} 26. Nb5 {[%emt 0:03:48]} Qe7 {[%emt 0:02:10]} 27. Nd2 {[%emt 0:00:34]} Rc8 {[%emt 0:01:03]} 28. Qa4 {[%emt 0:01:20] [#]} h5 $146 {[%emt 0:07:55]} ({Predecessor:} 28... Qc5 29. e4 dxe4 30. Nxe4 Qb6 31. Qd1 Ba2 32. Rb2 Be6 33. Rb1 Qd8 34. Na7 Rc7 35. Nb5 Rc8 36. Na7 Rc7 37. Nb5 Rc8 38. Na7 {½-½ (34) Kuzmicz,K (2471)-Miton,K (2622) Warsaw 2012}) 29. Nb3 {[%emt 0:13:35]} Kh7 {[%emt 0:07:34]} 30. d4 {[%emt 0:08:22]} ({White should play} 30. Nd2 $15) 30... Rc4 {[%emt 0:06:15]} 31. Qa3 {[%emt 0:01:34]} Rb4 {[%emt 0:01:37]} 32. Bf1 {[%emt 0:01:43]} exd4 {[%emt 0:05:29]} 33. exd4 {[%emt 0:04:03]} Bf8 {[%emt 0:01:29] Black is more active.} 34. Qa1 {[%emt 0:03:00]} Bd7 {[%emt 0:10:05]} 35. Nc3 {[%emt 0:00:10]} Qd6 {[%emt 0:02:19]} (35... Nxd4 36. Nxd5 Qd6 37. Nxb4 Nf3+ 38. Kh1 (38. Kg2 Qxb4 39. Kxf3 Qg4+ 40. Ke3 Qe6+ 41. Kd3 Qf5+ 42. Ke3 Qe6+ 43. Kd3 Qf5+ 44. Ke3 Qe6+ $17) 38... Qxb4 39. Bg2 $16 (39. Qf6 Bf5 $19)) 36. Bg2 {[%emt 0:01:55]} Be6 {[%emt 0:02:06]} ({Don't play} 36... Nxd4 37. Nxd4 Rxd4 38. Nb5 Bxb5 39. Qxd4 $16) 37. Qa8 {[%emt 0:01:58] [#]} (37. Ne2 $17) 37... Rb8 {[%emt 0:02:22]} (37... Bg7 $1 $19 38. Bxd5 (38. Nxd5 $2 Rb5 $19) 38... Rb8) 38. Qa5 {[%emt 0:00:01]} ({Better is} 38. Qa2 $15) 38... h4 {[%emt 0:07:02][%cal Rh4g3]} 39. g4 $2 {[%emt 0:01:29] [#]} (39. Ne2 $17) 39... Ne7 $2 {[%emt 0:07:02]} (39... Rxb3 $1 $19 {[%mdl 512] and Black stays clearly on top.} 40. gxf5 (40. Rxb3 $2 {loses.} Nxd4 41. Rb1 h3 $19) 40... Rxb1+ 41. Nxb1 Bxf5) 40. h3 $17 {[%emt 0:00:01]} Bg7 {[%emt 0:00:24]} 41. Ne2 {[%emt 0:01:52]} f5 {[%emt 0:02:10]} 42. gxf5 {[%emt 0:00:58]} (42. g5 $15) 42... Bxf5 $19 {[%emt 0:00:26]} 43. Rb2 {[%emt 0:00:01]} Qb4 $36 {[%emt 0:04:05][%mdl 2048] White is under strong pressure.} 44. Qc7 {[%emt 0:00:30]} (44. Qxb4 $17 {is the only way for White.} Rxb4 45. Nf4) 44... Rb7 {[%emt 0:01:40]} 45. Qc1 {[%emt 0:00:52]} (45. Qc3 $142) 45... Bh6 {[%emt 0:03:01] A strong pair of Bishops.} 46. Qd1 {[%emt 0:00:39]} (46. Qc3) 46... Qa3 {[%emt 0:00:45] Weighted Error Value: White=0.53/Black=0.28 (precise)} 0-1

[Event "14th BPB Limburg Open 2022"]
[Site "Maastricht"]
[Date "2022.06.06"]
[Round "6.11"]
[White "Decoster, Frederic"]
[Black "Schroer, Marcel"]
[Result "1-0"]
[ECO "B15"]
[WhiteElo "2293"]
[BlackElo "2093"]
[Annotator "TA"]
[PlyCount "113"]
[EventDate "2022.06.03"]
[EventType "swiss"]
[EventCountry "NED"]
[SourceTitle "playchess.com"]
[Source "ChessBase"]
[SourceQuality "1"]
[TimeControl "7200+15"]

{[%evp 9,113,28,37,-37,27,32,52,41,74,32,28,33,29,0,14,-19,0,0,3,3,22,6,16,3,38,32,33,6,15,10,20,0,45,-11,0,-17,0,0,15,4,149,151,147,127,134,128,195,211,193,72,79,79,81,77,75,81,87,87,87,87,94,88,94,94,94,57,94,94,108,79,88,55,108,20,108,44,46,43,45,12,12,16,72,72,72,74,77,83,147,145,29970,29973,29973,29974,29976,29977,29977,29976,29976,29977,29977,29978,29979,29978,29980,29980]} 1. e4 {[%emt 0:00:05]} c6 {[%emt 0:00:12]} 2. d4 {[%emt 0:00:06]} d5 {[%emt 0:00:07]} 3. Nd2 {[%emt 0:00:08]} dxe4 {[%emt 0:00:07]} 4. Nxe4 {[%emt 0:00:05]} Nf6 {[%emt 0:00:06]} 5. Nxf6+ {[%emt 0:00:52]} exf6 {[%emt 0:00:08]} 6. Bd3 {[%emt 0:00:14] B15: Caro-Kann: 3 Nc3: 3...g6 and 3...dxe4 4 Nxe4 Nf6 5 Nxf6+ exf6.} (6. c3 $14) 6... Bd6 {[%emt 0:00:57]} (6... Qxd4 $15 7. Nf3 Qb6) 7. Qh5 $11 {[%emt 0:00:10]} Nd7 {[%emt 0:03:33]} 8. Ne2 {[%emt 0:02:12] White is slightly better.} Nf8 {[%emt 0:01:26] [#]} 9. O-O $146 {[%emt 0:04:12]} ({Predecessor:} 9. c3 Ng6 10. O-O Be6 11. Be3 Qd7 12. h3 f5 13. Rfe1 O-O 14. a3 a5 15. c4 {0-1 (40) Krysa,L (2523)-Yakubboev,N (2604) Chess.com INT 2021}) 9... Ne6 {[%emt 0:13:01]} 10. a4 {[%emt 0:15:29]} g6 {[%emt 0:08:22]} 11. Qh4 {[%emt 0:02:45]} h5 {[%emt 0:06:28]} (11... O-O {is interesting.} 12. Bh6 Ng7 13. Rfe1 Re8) 12. f4 {[%emt 0:11:40] f5 is the strong threat.} f5 {[%emt 0:00:17]} 13. Qxd8+ {[%emt 0:01:30]} Kxd8 {[%emt 0:01:06]} 14. a5 {[%emt 0:00:27]} Kc7 {[%emt 0:02:25]} 15. Bd2 {[%emt 0:04:01]} Bd7 {[%emt 0:00:53]} 16. c4 {[%emt 0:05:27]} Rhe8 {[%emt 0:03:29]} 17. b4 {[%emt 0:04:34]} Rac8 {[%emt 0:07:32]} 18. Kf2 {[%emt 0:09:41]} Kb8 {[%emt 0:03:01]} 19. Rab1 {[%emt 0:05:37]} Bf8 {[%emt 0:07:05]} 20. Be3 {[%emt 0:04:12]} Nc7 {[%emt 0:01:17]} 21. Nc3 {[%emt 0:02:10]} (21. Ng1 $14) 21... Bg7 {[%emt 0:00:09]} 22. Na4 {[%emt 0:06:06]} Rcd8 {[%emt 0:03:23]} (22... Re7 {with more complications.} 23. Nc5 Rce8 24. Rfe1 Rxe3 25. Nxd7+ Kc8) 23. Rfd1 {[%emt 0:02:07]} Ne6 {[%emt 0:08:43]} 24. Be2 {[%emt 0:02:49]} Bc8 {[%emt 0:05:50]} (24... g5 $11) 25. d5 $16 {[%emt 0:01:59]} cxd5 {[%emt 0:00:08]} 26. cxd5 {[%emt 0:00:51]} Nf8 {[%emt 0:04:58]} 27. Nc5 {[%emt 0:02:46] White is more active.} Nd7 {[%emt 0:10:04]} (27... Rd6 $16 {was worth a try.}) 28. Bb5 $18 {[%emt 0:06:54]} Bf8 {[%emt 0:05:21]} 29. Kf3 {[%emt 0:01:37]} (29. d6 $18 {has better winning chances.}) 29... Rxe3+ $16 {[%emt 0:10:47]} 30. Kxe3 {[%emt 0:00:05] aiming for d6.} Nxc5 {[%emt 0:00:07]} 31. bxc5 {[%emt 0:00:16]} Bxc5+ {[%emt 0:00:05]} 32. Kf3 {[%emt 0:00:28]} b6 {[%emt 0:01:51]} 33. axb6 {[%emt 0:12:59]} axb6 {[%emt 0:00:38]} 34. Bc6 {[%emt 0:00:39]} Bb7 {[%emt 0:02:12]} 35. Ra1 {[%emt 0:03:15]} Rd6 {[%emt 0:04:21]} 36. Bxb7 {[%emt 0:00:29]} Kxb7 {[%emt 0:00:00][%mdl 4096] Endgame KRR-KRB} 37. Ra2 {[%emt 0:01:00]} b5 {[%emt 0:00:24]} 38. Rd3 {[%emt 0:00:59]} b4 {[%emt 0:00:33]} 39. Ke2 {[%emt 0:01:42]} Kb6 {[%emt 0:00:01]} 40. Kd2 {[%emt 0:00:48]} Kb5 {[%emt 0:00:11]} (40... Rd7 $14) 41. Rc2 {[%emt 0:00:11]} (41. h4 $1 $16) 41... Rb6 {[%emt 0:02:24] [#]} (41... h4 $1 $11) 42. Kc1 {[%emt 0:00:26]} (42. h4 $1 $16) 42... Bd6 {[%emt 0:02:32]} 43. g3 {[%emt 0:00:14]} h4 $1 {[%emt 0:00:08]} 44. Rc8 {[%emt 0:01:28]} hxg3 {[%emt 0:00:11]} 45. hxg3 {[%emt 0:00:01]} Ra6 {[%emt 0:01:02]} (45... f6 $11) 46. Kb1 {[%emt 0:02:29]} f6 {[%emt 0:00:50]} 47. Re3 {[%emt 0:00:56] Threatens to win with Re6.} g5 {[%emt 0:00:11] [#]} 48. Re6 $1 {[%emt 0:00:08]} gxf4 {[%emt 0:00:16]} ({Black should play} 48... Rb6) 49. gxf4 {[%emt 0:00:01]} Bxf4 $2 {[%emt 0:00:22][%mdl 8192] A mistake that costs the game.} (49... Rb6 $16) 50. Rxa6 {[%emt 0:00:15] White mates.} Kxa6 {[%emt 0:00:01] KR-KB} 51. d6 {[%emt 0:00:02]} Kb7 {[%emt 0:01:20]} 52. d7 {[%emt 0:00:05]} Bc7 {[%emt 0:00:02]} 53. d8=Q {[%emt 0:00:14]} Bxd8 {[%emt 0:00:00]} 54. Rxd8 {[%emt 0:00:02]} Kc6 {[%emt 0:00:01]} 55. Kc2 {[%emt 0:00:18]} f4 {[%emt 0:00:02]} 56. Kd3 {[%emt 0:00:18]} f3 {[%emt 0:00:19]} 57. Rf8 {[%emt 0:00:02] Weighted Error Value: White=0.19 (very precise) /Black=0.29 (precise)} 1-0

[Event "14th BPB Limburg Open 2022"]
[Site "Maastricht"]
[Date "2022.06.06"]
[Round "6.13"]
[White "Ratsma, Midas"]
[Black "Sankalp Gupta"]
[Result "0-1"]
[ECO "A06"]
[WhiteElo "2200"]
[BlackElo "2505"]
[Annotator "TA"]
[PlyCount "62"]
[EventDate "2022.06.03"]
[EventType "swiss"]
[EventCountry "NED"]
[SourceTitle "playchess.com"]
[Source "ChessBase"]
[SourceQuality "1"]
[TimeControl "7200+15"]

{[%evp 9,62,-4,17,10,13,22,29,23,22,0,34,34,39,24,27,10,35,20,27,20,36,0,7,0,6,-62,-71,-64,-71,-60,-58,-76,-45,-50,-43,-28,0,-56,-52,-66,-56,-53,-39,-134,-144,-239,-231,-662,-664,-656,-655,-1683,-1192,-1135,-1129]} 1. Nf3 {[%emt 0:00:03]} Nf6 {[%emt 0:03:04]} 2. b3 {[%emt 0:00:09]} d5 {[%emt 0:00:38]} 3. e3 {[%emt 0:00:11]} Bf5 {[%emt 0:01:35]} 4. Bb2 {[%emt 0:00:09]} e6 {[%emt 0:00:14]} 5. Nh4 {[%emt 0:00:08]} Bg6 {[%emt 0:08:46]} (5... Bg4 $5 {[%cal Rg4d1]} 6. Nf3 Bd6 $11) 6. Nxg6 {[%emt 0:00:11] A06: Réti Opening: 1 Nf3 d5.} hxg6 {[%emt 0:00:02]} 7. g3 {[%emt 0:00:06]} Nbd7 {[%emt 0:05:49]} 8. Bg2 {[%emt 0:00:08] White has an edge.} c6 {[%emt 0:00:56]} 9. d3 {[%emt 0:00:08] [#]} e5 $146 {[%emt 0:00:43]} ({Predecessor:} 9... Bd6 10. Nd2 a5 11. a3 Qc7 12. Qe2 Be5 13. c3 g5 14. h3 Bd6 15. c4 Be5 {½-½ (76) Nakamura,H (2736)-Gordievsky,D (2559) Chess.com INT 2020}) 10. Nd2 {[%emt 0:02:24]} Bd6 {[%emt 0:01:01]} 11. Qe2 {[%emt 0:00:32]} Qe7 {[%emt 0:00:31]} 12. a3 {[%emt 0:03:33]} a5 {[%emt 0:00:21]} 13. c4 {[%emt 0:05:34]} O-O {[%emt 0:01:55]} 14. O-O {[%emt 0:12:51]} Rab8 {[%emt 0:01:27]} 15. g4 {[%emt 0:12:30]} g5 {[%emt 0:07:11]} 16. Rfd1 {[%emt 0:15:24]} b5 {[%emt 0:04:20]} 17. h3 {[%emt 0:10:09]} (17. cxd5 $11 cxd5 18. h3) 17... bxc4 $15 {[%emt 0:06:37]} 18. dxc4 {[%emt 0:00:05]} e4 {[%emt 0:00:43]} 19. b4 {[%emt 0:06:04]} axb4 {[%emt 0:11:56]} 20. axb4 {[%emt 0:00:04]} Be5 {[%emt 0:01:46]} ({Reject} 20... Rxb4 21. Ba3 $11) 21. Bxe5 {[%emt 0:02:05]} Nxe5 {[%emt 0:01:15]} 22. b5 {[%emt 0:02:06]} dxc4 $1 {[%emt 0:00:13]} 23. Nxc4 {[%emt 0:03:49]} (23. bxc6 $1 $11 Rb2 24. Rdb1 Rxb1+ 25. Rxb1) 23... Nxc4 {[%emt 0:01:00]} 24. Qxc4 {[%emt 0:00:04]} cxb5 {[%emt 0:00:05][%cal Bc6b5,Bb5b4,Bb4b3,Bb3b2][%mdl 32]} 25. Qb3 {[%emt 0:00:57]} b4 {[%emt 0:00:41]} 26. Ra5 {[%emt 0:01:14] [#]} ({White should play} 26. Rab1 $15) 26... Rfc8 $1 $17 {[%emt 0:01:50]} 27. Rd4 {[%emt 0:11:46]} (27. Bf1 $17) 27... Qe6 $19 {[%emt 0:05:03]} 28. Qb1 {[%emt 0:06:23]} (28. Qb2 b3 29. Rd2) 28... b3 {[%emt 0:01:18] White must now prevent ...b2. Black is clearly winning.} 29. Rd1 {[%emt 0:02:13]} b2 {[%emt 0:00:36]} 30. h4 {[%emt 0:02:03]} Qb3 {[%emt 0:01:41][%cal Ob3d1] [#] Hoping for ...Qxd1+!} 31. Rf1 {[%emt 0:00:51]} Qc2 {[%emt 0:00:28] Weighted Error Value: White=0.53/Black=0.29 (precise)} 0-1

[Event "14th BPB Limburg Open 2022"]
[Site "Maastricht"]
[Date "2022.06.06"]
[Round "7.1"]
[White "Van Foreest, Lucas"]
[Black "Donchenko, Alexander"]
[Result "1/2-1/2"]
[ECO "E35"]
[WhiteElo "2572"]
[BlackElo "2599"]
[Annotator "TA"]
[PlyCount "70"]
[EventDate "2022.06.03"]
[EventType "swiss"]
[EventCountry "NED"]
[SourceTitle "playchess.com"]
[Source "ChessBase"]
[SourceQuality "1"]
[TimeControl "7200+15"]

{[%evp 9,70,25,35,11,15,9,0,0,0,0,0,-21,0,-21,-22,-31,-33,-38,-35,-40,-20,-52,-53,-74,-52,-78,-75,-73,-68,-73,-73,-77,-63,-70,-43,-56,-43,-66,-66,-66,-61,-62,-62,-78,-81,-90,-90,-82,-100,-198,-110,-104,-45,-43,-35,-28,-26,-34,-25,-19,-35,-26,-16]} 1. d4 {[%emt 0:00:08]} Nf6 {[%emt 0:00:12]} 2. c4 {[%emt 0:00:05]} e6 {[%emt 0:00:07]} 3. Nc3 {[%emt 0:00:02]} Bb4 {[%emt 0:00:13]} 4. Qc2 {[%emt 0:00:03]} d5 {[%emt 0:00:17]} 5. cxd5 {[%emt 0:00:11]} exd5 {[%emt 0:00:07]} 6. Bf4 {[%emt 0:00:03] E35: Nimzo-Indian: Classical: 4...d5 5 cxd5 exd5.} O-O {[%emt 0:00:32]} 7. e3 {[%emt 0:00:24]} Nh5 {[%emt 0:00:15]} 8. Bg3 {[%emt 0:01:05] [#] The position is equal.} c6 $146 {[%emt 0:05:27]} ({Predecessor:} 8... g6 9. Nf3 Be7 10. Be5 Nc6 11. Be2 Nxe5 12. dxe5 c6 13. Rd1 Qb6 14. O-O Rd8 {½-½ (41) Leijen,P (2057)-Jenneborg,S (2222) LSS email 2018}) 9. Bd3 {[%emt 0:00:17]} g6 {[%emt 0:01:55]} 10. Nf3 {[%emt 0:13:29]} Be7 {[%emt 0:12:38]} 11. Bxb8 {[%emt 0:24:35]} Rxb8 {[%emt 0:00:07]} 12. Rb1 {[%emt 0:00:09]} Bd6 {[%emt 0:06:04]} 13. O-O {[%emt 0:11:51]} Qe7 {[%emt 0:04:08]} 14. Rfe1 {[%emt 0:01:04]} f5 {[%emt 0:09:27]} 15. Qd1 {[%emt 0:14:07]} Nf6 {[%emt 0:03:05]} 16. Nd2 {[%emt 0:01:17]} Ne4 {[%emt 0:13:06][%cal Od6h2] White must now prevent ...Bxh2+!} 17. Nf1 {[%emt 0:00:18]} Be6 {[%emt 0:02:31]} 18. f3 {[%emt 0:00:03]} Nf6 {[%emt 0:02:01]} 19. Qc2 {[%emt 0:00:07]} Kh8 {[%emt 0:02:10]} 20. Re2 {[%emt 0:00:25]} Rbe8 {[%emt 0:04:09]} 21. a3 {[%emt 0:00:01]} a5 {[%emt 0:02:59]} 22. Rbe1 {[%emt 0:00:02]} Qg7 {[%emt 0:01:43]} 23. Qd2 {[%emt 0:03:35]} Bc8 {[%emt 0:04:58]} 24. Na4 {[%emt 0:01:44]} b5 {[%emt 0:05:23]} 25. Nc5 {[%emt 0:00:25]} a4 {[%emt 0:01:04]} 26. Qc2 {[%emt 0:00:17]} f4 {[%emt 0:03:06]} 27. b4 {[%emt 0:09:41]} fxe3 {[%emt 0:02:31]} 28. Rxe3 {[%emt 0:00:01]} Rxe3 {[%emt 0:00:42]} 29. Rxe3 {[%emt 0:04:37] [#]} (29. Nxe3 $17 Nh5 30. Qc3) 29... Nh5 {[%emt 0:14:38]} ({Black should play} 29... Ng4 $1 $19 {[%cal Rg4e3][%mdl 512]} 30. fxg4 Qxd4) 30. Qc3 $17 {[%emt 0:01:14]} Be7 {[%emt 0:02:01]} (30... Nf4 $17 31. g3 g5) 31. Ne6 $15 {[%emt 0:00:30]} Bxe6 {[%emt 0:00:03]} 32. Rxe6 {[%emt 0:00:04]} Bf6 {[%emt 0:00:31]} 33. Kh1 {[%emt 0:00:05]} Bxd4 {[%emt 0:00:13]} 34. Qc2 {[%emt 0:00:11]} c5 {[%emt 0:07:44]} 35. bxc5 {[%emt 0:01:09]} Nf4 {[%emt 0:00:17] Weighted Error Value: White=0.12 (very precise) /Black=0.10 (very precise)} 1/2-1/2